Cogmind - Beta 13 @@@ ROGUE MODE // 2024.04.09 @ 04:00:10 Player: GregoriusTechneticies Result: Destroyed by S-10 Pest with Light Assault Rifle Performance ------------- Evolutions (0) 0 Regions Visited (4) 800 Robots Destroyed (22) 110 Value Destroyed (331) 331 Prototype IDs (10) 200 Alien Tech Used (0) 0 Bonus (0) 0 TOTAL SCORE: 1441 Bonus ------- None Cogmind --------- Core Integrity 0/250 Matter 207/300 Energy 29/100 System Corruption 0% Temperature Cool (0) Movement Core (50) Location -8/Recycling Parts ------- > --- POWER (1) -------- (None) > --- PROPULSION (2) --- (None) > --- UTILITY (2) ------ Scrap Engine > --- WEAPON (2) ------- Multitool > --- INVENTORY (5) ---- Subdweller Optics Signal Interpreter Datajack Mining Laser Peak State ------------ > --- POWER ------------ Light Angular Momentum Engine > --- PROPULSION ------- Wheel Wheel > --- UTILITY ---------- Improved Terrain Scanner Terrain Scan Processor > --- WEAPON ----------- Makeshift Shrapnel Gun Slug Cannon > --- INVENTORY -------- Subdweller Optics Signal Interpreter Datajack Mining Laser Multitool [Rating: 20] Favorites ----------- Power Light Angular Momentum Engine Engine Light Angular Momentum Engine Propulsion Wheel Wheel Wheel Utility Improved Terrain Scanner Device Improved Terrain Scanner Processor Terrain Scan Processor Weapon Slug Cannon Ballistic Gun Battle Rifle Ballistic Cannon Slug Cannon Special Weapon Mining Laser Build | -11 -10 -10 -10 -8 ------- Run | Yrd Mat Min Sub Rec Slots Evolved . | . . . . . Power . | . . . . . Propulsion . | . . . . . Utility . | . . . . . Weapon . | . . . . . Parts Attached 43 | 12 1 4 24 2 Power 8 | 3 . 1 4 . Engine 8 | 3 . 1 4 . Core . | . . . . . Reactor . | . . . . . Propulsion 4 | 3 . 1 . . Treads . | . . . . . Leg . | . . . . . Wheel 4 | 3 . 1 . . Hover . | . . . . . Flight . | . . . . . Utility 7 | 4 1 . 1 1 Device 6 | 4 . . 1 1 Storage . | . . . . . Processor 1 | . 1 . . . Hackware . | . . . . . Protection . | . . . . . Artifact . | . . . . . Weapon 24 | 2 . 2 19 1 Energy Gun . | . . . . . Energy Cannon . | . . . . . Ballistic Gun 7 | 2 . 1 4 . Ballistic Cannon 9 | . . . 9 . Launcher . | . . . . . Special Weapon 8 | . . 1 6 1 Impact Weapon . | . . . . . Slashing Weapon . | . . . . . Piercing Weapon . | . . . . . Special Melee Weapon . | . . . . . Unidentified Prototypes . | . . . . . Parts Lost 5 | . . . 5 . Power 1 | . . . 1 . Propulsion 2 | . . . 2 . Utility . | . . . . . Weapon 2 | . . . 2 . Highest Loss Streak 4 | . . . 4 . To Critical Strikes 1 | . . . 1 . Average Slot Usage (%) 98 | . 100 100 99 21 Engine 13 | . 14 14 13 . Wheel 27 | . 28 28 27 . Device 14 | . 28 14 14 14 Processor 13 | . . 14 14 . Ballistic Gun 8 | . 28 28 7 . Ballistic Cannon 14 | . . . 15 . Special Weapon 4 | . . . 4 7 Naked Turns . | . . . . . Heaviest Build 20 | 10 8 7 20 3 Greatest Support 26 | 26 20 20 20 3 Greatest Overweight (x) 1 | . . . 1 . Average Overweight (x) . | . . . . . Largest Inventory Capacity 5 | 5 5 5 5 5 Average Capacity 5 | 5 5 5 5 5 Most Carried 5 | 5 5 5 5 5 Average Carried 4 | 4 4 5 4 4 Final Capacity 5 | 5 5 5 5 5 Final Carried 5 | 5 5 5 5 4 Class Distribution -------------------- 98% | Scavenger-Mutant Dominant Class ---------------- Scavenger-Mutant | -10/Materials Scavenger-Mutant | -10/Mines Scavenger-Mutant | -10/Subcaves Mutant | -8/Recycling Resources | -11 -10 -10 -10 -8 ----------- Run | Yrd Mat Min Sub Rec Matter Collected 1050 | 404 64 52 530 . Remotely . | . . . . . Salvage Created 492 | 243 73 56 120 . Parts 43 | 22 11 7 3 . Haulers Intercepted . | . . . . . Recyclers Shooed . | . . . . . Parts Field Recycled . | . . . . . Retrieved Matter . | . . . . . Parts Self-Destructed 8 | . . . 8 . Prevented . | . . . . . Kills | -11 -10 -10 -10 -8 ------- Run | Yrd Mat Min Sub Rec Combat Hostiles Destroyed 8 | . . 2 6 . Guns 2 | . . 2 . . Cannons 6 | . . . 6 . Classes Destroyed 11 | 3 4 1 3 . Worker 3 | 2 . 1 . . Builder 1 | . 1 . . . Tunneler 5 | 5 . . . . Recycler 1 | 1 . . . . Mechanic 1 | . 1 . . . Operator 1 | . 1 . . . Turret 1 | . . . 1 . Watcher 1 | . 1 . . . Swarmer 4 | . . 2 2 . Grunt 1 | . . . 1 . Subdweller 3 | . . . 3 . Best Kill Streak 3 | 3 2 2 3 . Combat Bots Only 2 | . . 2 2 . Max Kills in Single Turn 1 | 1 1 1 1 . Gunslinging . | . . . . . Exploded . | . . . . . Melee . | . . . . . Uniques/NPCs Destroyed . | . . . . . Combat | -11 -10 -10 -10 -8 -------- Run | Yrd Mat Min Sub Rec Hostile Shots Fired 120 | . 9 3 103 5 Missed 51 | . 2 1 45 3 Damage Taken 732 | . 77 15 620 20 Core 253 | . . . 233 20 Absorbed by Shields . | . . . . . Core Remaining (%) 100 | 100 . . . . Volleys Fired 111 | 21 16 4 65 5 Largest 2 | 2 2 2 2 1 Hottest 148 | 40 40 100 148 30 Shots Fired 179 | 42 32 7 93 5 Gun 84 | 42 32 6 4 . Cannon 54 | . . . 54 . Launcher . | . . . . . Special 41 | . . 1 35 5 Kinetic 138 | 42 32 6 58 . Thermal 41 | . . 1 35 5 Explosive . | . . . . . Electromagnetic . | . . . . . Robot Hit Streak 10 | 6 10 4 8 4 Robot Miss Streak 4 | 2 2 . 4 1 Penetration Max . | . . . . . Secondary Targets . | . . . . . Shots Hit Robots 77 | 28 20 3 23 3 Core Hits 32 | 11 9 3 9 . Critical Kills 1 | . . . 1 . Critical Parts Destroyed . | . . . . . Critical Strikes 1 | . . . 1 . Destroy 1 | . . . 1 . Melee Attacks . | . . . . . Impact . | . . . . . Slashing . | . . . . . Piercing . | . . . . . Sneak Attacks . | . . . . . Combat Hostiles . | . . . . . Follow-up Attacks . | . . . . . Damage Inflicted 1079 | 299 211 35 511 23 Guns 545 | 299 211 35 . . Cannons 511 | . . . 511 . Explosions . | . . . . . Melee . | . . . . . Ramming . | . . . . . Kinetic 1056 | 299 211 35 511 . Thermal 23 | . . . . 23 Explosive . | . . . . . Electromagnetic . | . . . . . Impact . | . . . . . Slashing . | . . . . . Piercing . | . . . . . Highest Corruption . | . . . . . Average Corruption . | . . . . . Corruption Purged . | . . . . . Corruption Blocked . | . . . . . Overload Shots . | . . . . . Overflow Damage . | . . . . . Projectiles . | . . . . . Explosions . | . . . . . Melee . | . . . . . Knockbacks 5 | . . . 5 . Impact . | . . . . . Kinetic 5 | . . . 5 . Secondary . | . . . . . Self-Inflicted Damage . | . . . . . Shots . | . . . . . Rammed . | . . . . . Targets Rammed . | . . . . . Kicked . | . . . . . Crushed . | . . . . . Highest Temperature 20 | . 12 20 20 . Average Temperature 9 | . 9 12 8 . Received Heat Transfer 336 | . 42 . 285 9 Siege Activations . | . . . . . Robots Corrupted . | . . . . . Combat Hostiles . | . . . . . Parts Fried . | . . . . . Impact Corruptions . | . . . . . Robots Melted . | . . . . . Combat Hostiles . | . . . . . Parts Melted . | . . . . . Heat Transferred 75 | . . . . 75 Parts Sabotaged . | . . . . . Parts Stolen . | . . . . . Parts Stripped . | . . . . . Power Chain Reactions . | . . . . . Alert | -11 -10 -10 -10 -8 ------- Run | Yrd Mat Min Sub Rec Peak Influence 312 | 40 124 109 . 312 Initial 312 | . 26 48 . 312 Average 78 | 19 71 70 . 312 Maximum Alert Level 1 | . . . . 1 Low Security (%) 88 | 100 100 100 . . Level 1 11 | . . . . 100 Level 2 . | . . . . . Level 3 . | . . . . . Level 4 . | . . . . . Level 5 . | . . . . . High Security . | . . . . . Max Security . | . . . . . Squads Dispatched . | . . . . . Investigation . | . . . . . Extermination . | . . . . . Reinforcement . | . . . . . Assault . | . . . . . Garrison . | . . . . . Intercept . | . . . . . Searches Triggered . | . . . . . Construction Impeded . | . . . . . Haulers Reinforced . | . . . . . Active Scanning Responses . | . . . . . Cargo Convoy Interrupts . | . . . . . Stealth | -11 -10 -10 -10 -8 --------- Run | Yrd Mat Min Sub Rec Distress Signals 1 | . 1 . . . Communications Jammed . | . . . . . Distress Signals . | . . . . . Times Spotted 55 | . 7 3 43 2 Peak Tracking Total 7 | . 3 3 7 3 Tactical Retreats 7 | . 1 1 5 . Traps | -11 -10 -10 -10 -8 ------- Run | Yrd Mat Min Sub Rec Traps Triggered . | . . . . . Indirectly . | . . . . . Trap Hack Attempts . | . . . . . Triggered . | . . . . . Disarmed . | . . . . . Reprogrammed . | . . . . . Reused . | . . . . . Traps Extracted . | . . . . . Installed . | . . . . . Triggered . | . . . . . Machines | -11 -10 -10 -10 -8 ---------- Run | Yrd Mat Min Sub Rec Machines Disabled 3 | . . . 3 . Max in Single Turn 1 | . . . 1 . Machines Repaired . | . . . . . Machines Dismantled . | . . . . . Machines Sabotaged . | . . . . . Overloaded Fab Kills . | . . . . . Hacking | -11 -10 -10 -10 -8 --------- Run | Yrd Mat Min Sub Rec Machines Accessed 5 | . 2 . 1 2 Terminals 3 | . 2 . . 1 Fabricators . | . . . . . Repair Stations . | . . . . . Recycling Units 1 | . . . . 1 Scanalyzers . | . . . . . Garrison Access . | . . . . . Total Hacks 18 | . 5 . 9 4 Successful 13 | . 2 . 9 2 Failed 5 | . 3 . . 2 Catastrophic . | . . . . . Database Lockouts . | . . . . . Manual 7 | . 5 . . 2 Terminals 7 | . 5 . . 2 Fabricators . | . . . . . Repair Stations . | . . . . . Recycling Units 2 | . . . . 2 Scanalyzers . | . . . . . Garrison Access . | . . . . . Terminal Hacks 9 | . . . 9 . Record 8 | . . . 8 . Derelict Proto ID Bank 1 | . . . 1 . Fabricator Hacks . | . . . . . Repair Station Hacks . | . . . . . Recycling Unit Hacks 1 | . . . . 1 Retrieve Components 1 | . . . . 1 Scanalyzer . | . . . . . Garrison Access Hacks . | . . . . . Unauthorized Hacks 3 | . 2 . . 1 Terminals 3 | . 2 . . 1 Botnet 3 | . 2 . . 1 Fabricators . | . . . . . Repair Stations . | . . . . . Recycling Units . | . . . . . Scanalyzers . | . . . . . Garrison Access . | . . . . . Data Cores Recovered 1 | . 1 . . . Used . | . . . . . Hacking Detections 4 | . 2 . . 2 Full Trace Events . | . . . . . Feedback Events . | . . . . . Feedback Blocked . | . . . . . Robot Schematics Acquired . | . . . . . Robots Built . | . . . . . Authchips . | . . . . . Time . | . . . . . Total Robot Build Rating . | . . . . . Part Schematics Acquired . | . . . . . Parts Built . | . . . . . Authchips . | . . . . . Time . | . . . . . Total Part Build Rating . | . . . . . Parts Repaired . | . . . . . Time . | . . . . . Parts Recycled . | . . . . . Recycled Matter . | . . . . . Retrieved Matter . | . . . . . Retrieved Components . | . . . . . Parts Scanalyzed . | . . . . . Part Schematics Acquired . | . . . . . Parts Damaged . | . . . . . Bothacking | -11 -10 -10 -10 -8 ------------ Run | Yrd Mat Min Sub Rec Used RIF Installer . | . . . . . Robots Hacked . | . . . . . Non-combat . | . . . . . Combat . | . . . . . Robot Hacks Applied . | . . . . . Relay Couplers Released . | . . . . . Fabnet Peak Effective % . | . . . . . Robots Rewired . | . . . . . Allies Hacked . | . . . . . Hacks Repelled . | . . . . . Allies | -11 -10 -10 -10 -8 -------- Run | Yrd Mat Min Sub Rec Total Allies . | . . . . . Largest Group . | . . . . . Highest-Rated Group . | . . . . . Highest-Rated Ally . | . . . . . Total Orders . | . . . . . Ally Attacks . | . . . . . Total Damage . | . . . . . Kills . | . . . . . Allies Corrupted . | . . . . . Allies Melted . | . . . . . Intel | -11 -10 -10 -10 -8 ------- Run | Yrd Mat Min Sub Rec Robot Analysis Total . | . . . . . Derelict Logs Recovered 1 | . . 1 . . Drone Launches . | . . . . . Drone Recoveries . | . . . . . Exploration | -11 -10 -10 -10 -8 ------------- Run | Yrd Mat Min Sub Rec Turns Passed 4748 | 229 159 100 4194 66 Spaces Moved 2029 | 153 132 102 1548 94 Core 114 | 8 . . 12 94 Treads . | . . . . . Legs . | . . . . . Wheels 1915 | 145 132 102 1536 . Hover . | . . . . . Flight . | . . . . . Fastest Speed 50 | 50 80 80 50 50 Average Speed 78 | 79 80 80 80 50 Slowest Speed 95 | 90 80 80 95 50 Overloaded Moves . | . . . . . Propulsion Burnouts . | . . . . . Robots Hopped . | . . . . . Cave-ins Triggered . | . . . . . Exploration Rate (%) 23 | 5 19 27 54 14 Regions Visited 4 Branch Regions 3 Pre-discovered Areas 1 | . . 1 . . Known Exits Taken . | . . . . . Unknown Exits Taken 4 | 1 1 1 1 . Scrap Searched 5 | . . . 5 . Spaces Dug 1 | . . 1 . . Terrain Destroyed 6 | . . 1 5 . Melee . | . . . . . Projectile 6 | . . 1 5 . AOE . | . . . . . Terrain Rammed . | . . . . . Walls Destroyed . | . . . . . Machines Disabled . | . . . . . Actions | -11 -10 -10 -10 -8 --------- Run | Yrd Mat Min Sub Rec Total 4934 | 225 158 112 4330 109 Wait 2695 | 17 . . 2673 5 Move 2025 | 152 131 101 1547 94 Hop . | . . . . . Pick Up 26 | 16 5 . 5 . Fast Attach 9 | . . . 8 1 Attach 10 | 7 . . 2 1 Detach 1 | . . . 1 . Swap 24 | 5 1 4 14 . Drop 32 | 7 5 3 15 2 Fire 111 | 21 16 4 65 5 Melee . | . . . . . Ram . | . . . . . Kick . | . . . . . Crush . | . . . . . Escape Stasis . | . . . . . Rewire . | . . . . . Trap . | . . . . . Miscellaneous 1 | . . . . 1 Route ------- -11/Scrapyard -10/Materials -10/Mines -10/Subcaves -8/Recycling History --------- Turn | Location | Event 5 | -11/Scrapyard | Discovered new exit (range 16) 230 | -11/Scrapyard | Entered Materials 304 | -10/Materials | Build established: Scavenger-Mutant 381 | -10/Materials | Discovered new exit (range 6) 389 | -10/Materials | Entered Mines 396 | -10/Mines | Met a Derelict bent on vengeance 409 | -10/Mines | Learned location of Zion (-6) 461 | -10/Mines | Discovered new exit (range 16) 489 | -10/Mines | Entered Subcaves 503 | -10/Subcaves | Shifting Twisted Machinery released Battle Cannon 624 | -10/Subcaves | Ambushed by swarm of Subdwellers 827 | -10/Subcaves | Visited 4L-MR0's lab 1835 | -10/Subcaves | Shifting Twisted Machinery released Slug Cannon 1837 | -10/Subcaves | Shifting Twisted Machinery released Riot Gun 1935 | -10/Subcaves | Shifting Twisted Machinery released Battle Cannon 3013 | -10/Subcaves | Shifting Twisted Machinery released Sub. Monowheel 3017 | -10/Subcaves | Shifting Twisted Machinery released Sub. Power Source 3710 | -10/Subcaves | A Subdweller sparked back to life 3710 | -10/Subcaves | A Subdweller sparked back to life 3710 | -10/Subcaves | A Subdweller sparked back to life 3995 | -10/Subcaves | A swath of the cavern ceiling suddenly collapsed 4347 | -10/Subcaves | Discovered new exit (range 6) 4573 | -10/Subcaves | Core integrity fell below 50% 4678 | -10/Subcaves | Core integrity fell below 20% 4683 | -10/Subcaves | Entered Recycling 4685 | -8/Recycling | Found Scrap Engine 4706 | -8/Recycling | Lost 4 parts (1p1n2w) 4749 | -8/Recycling | Destroyed by S-10 Pest with Light Assault Rifle Last Messages --------------- 04682_ Acquired 3 matter. 04682_ Acquired 6 matter. A mysterious object appears at your location! LOCATION=UNKNOWN GOAL=ESCAPE 04684_ Dropped Imp. Terrain Scanner. 04685_ Discarded Terrain Scan Processor. 04685_ Acquired Scrap Engine. 04693_ Connecting with Terminal... 04693_ Current location identified: Recycling >>Trojan(Botnet) Trojan loaded successfully. Testing... Terminal linked with 0 systems. Awaiting botnet instructions. 04696_ Connecting with Recycling Unit... 04727_ Terminal reconfigured, +19% effectiveness. 04729_ Connecting with Terminal... 04743_ Y-45 Defender springs to life. Map ----- +----------------------------------------------------+ | ????????????????????????????????????????? | | ????????????????????????????????????????? | | ????????????????????????????????????????? | | ????????????????????????????????????????? | | ????????????????????????????????????????? | | ????????????????????????????????????????? | | ????????????????????????????????????????? | | ????????????????????????????????????????? | | ????????????????????????????????????????? | | ????????????????????????????????????????? | | ???????????????? ??????????????????????? | | ???????????????? ??????????????????????? | | ???????????????? ??????????????????????? | | ???????????????# ??????????????????????? | | ??????????????? ??????????????????????? | | ??????????????? ?######+###???????????? | | ??????????????? ?# #???????????? | | ??????????????? ?? !! %! #???????????? | | ??????????????? #?? ]#???????????? | | ??????????????? #??? =% ???????????#? | | ??????????????? #??? ! ?????????? +? | | ???????????????#s#???? ??????????? #? | | ???????????????# #???? ?????????? #? | | ???????????????# ##???? ! ?????#####? #? | | ???????????????# Y#???? ?????#"""# #? | | ???????????????#@#######+#######"Y"# ## | | ?????#####+##??# | | ????? ]!/ #### | | ?????? ##"" | | ?????? ##"Y ###############+###### | | ??????? ##"" ###??????????????????? | | ???????] #### ""#??????????????????? | | ???????? * #??# Y"#??????????????????? | | ???????? #??# ""#??????????????????? | | ????????? ???# ###??????????????????? | | ????????? ??## ##???????????????????? | | ????######+#### #???????????????????? | | ????# #???????????????????? | | ????#! T #???????????????????? | | ????# #???????????????????? | | ????########### #???????????????????? | | ??????????#???#######???????????????????? | | ????????????????????????????????????????? | | | | | | | | | | | | | | | +----------------------------------------------------+ Best States ------------- Heat Dissipation 25 Energy Generation 18 Energy Capacity 250 Matter Stores 300 Matter Capacity 300 Sight Range 16 Terrain Scan Range 16 Terrain Scan Density 85 Evasion (%) 50 Item Schematics ----------------- None Robot Schematics ------------------ None Fabricated ------------ Nothing Alien Tech Used ----------------- None Achievements -------------- None Challenges ------------ None Game ------ Seed BattleTeslaInsulator Manual? 0 Play Time 00:44:35 Cumulative 19.3 hours Start 2024.04.09 @ 03:10:57 End 2024.04.09 @ 04:00:10 Sessions 1 Manual Loads 0 Difficulty Rogue Special Mode None Game No. 21 Rogue 6 Adventurer 0 Explorer 15 Win Type - Total 0 Types 0/0/0/0/0/0/0/0/0 Lore% 14 Gallery% 23 Achievement% 18 Wizard Run 0 Options --------- Layout 1 ASCII 0 Keyboard 0 Movement Mouse Keybinds 0 Fullscreen 1 Font 24/Smallcaps Map View 50x35 Zoom Use 0% Tactical HUD 1 Map Filters NONE Filters NONE Steam 1 RUN: c2ab3464-8244-4712-b705-cbea94b0ae36